fUSD/lending_fUSD_20240216
["ID","MTS","AMOUNT","RATE_DAILY","PERIOD"]
[314219891,1708090254721,-6305.24191021,0.00048782,25]
[314219892,1708090254730,-200.0,0.00048787,55]
[314219893,1708090254740,-200.0,0.00048787,54]
[314219894,1708090254749,-200.0,0.00048787,53]
[314219895,1708090254758,-200.0,0.00048787,52]
[314219896,1708090254767,-200.0,0.00048787,51]
[314219897,1708090254776,-15267.88796618,0.0004888,2]
[314219898,1708090254785,-890.02085763,0.00048888,120]
[314219899,1708090254795,-730.75,0.000489,7]
[314219900,1708090254805,-609.79,0.000489,7]
[314219901,1708090254814,-512.69204958,0.000489,2]
[314219902,1708090254823,-1444.0726728,0.00048937,120]
[314219903,1708090254832,-151.58014321,0.00048979,40]
[314219904,1708090254842,-100000.0,0.00049,39]
[314219905,1708090254851,-250.0,0.00049,2]
[314219906,1708090254860,-1000.0,0.00049,2]
[314219907,1708090254868,-300.0,0.00049,49]
[314219908,1708090254877,-630000.0,0.00049,120]
[314219909,1708090254888,-230.29,0.00049,10]
[314219910,1708090254896,-7174.63708417,0.00049,60]
[314219911,1708090254906,-1444.0726728,0.00049086,120]
[314219912,1708090254914,-152.90020697,0.00049122,45]
[314219913,1708090254923,-250.0,0.00049274,2]
[314219914,1708090254933,-730.75,0.000493,7]
[314219915,1708090254943,-155.0,0.00049315,60]
[314219916,1708090254952,-3000.0,0.00049315,46]
[314219917,1708090254962,-4000.0,0.00049315,2]
[314219918,1708090254971,-915.62,0.00049315,2]
[314219919,1708090254980,-405.38,0.00049315,2]
[314219920,1708090254989,-915.62,0.00049315,2]
[314219921,1708090254998,-405.38,0.00049315,2]
[314219922,1708090255007,-915.62,0.00049315,2]
[314219923,1708090255016,-915.62,0.00049315,2]
[314219924,1708090255025,-915.62,0.00049315,2]
[314219925,1708090255034,-405.38,0.00049315,2]
[314219926,1708090255043,-915.62,0.00049315,2]
[314219927,1708090255052,-405.38,0.00049315,2]
[314219928,1708090255062,-915.62,0.00049315,2]
[314219929,1708090255071,-915.62,0.00049315,2]
[314219930,1708090255080,-405.38,0.00049315,2]
[314219931,1708090255089,-915.62,0.00049315,2]
[314219932,1708090255099,-405.38,0.00049315,2]
[314219933,1708090255108,-405.38,0.00049315,2]
[314219934,1708090255118,-405.38,0.00049315,2]
[314219935,1708090255128,-405.38,0.00049315,2]
[314219936,1708090255139,-405.38,0.00049315,2]
[314219937,1708090255150,-800.0,0.00049315,30]
[314219938,1708090255159,-800.0,0.00049315,30]
[314219939,1708090255170,-800.0,0.00049315,30]
[314219940,1708090255181,-1385.0,0.00049342,5]
[314219941,1708090255190,-263.87,0.0004941,2]
[314219942,1708090255199,-200.0,0.00049431,30]
[314219943,1708090255209,-1444.0726728,0.00049439,120]
[314219944,1708090255218,-150.0,0.00049459,2]
[314219945,1708090255228,-154.13603139,0.000495,2]
[314219946,1708090255237,-300.0,0.000495,60]
[314219947,1708090255247,-250.0,0.00049548,2]
[314219948,1708090255257,-1043.07,0.00049564,120]
[314219949,1708090255267,-399.98577198,0.00049605,14]
[314219950,1708090255276,-151.58014321,0.0004974,43]
[314219951,1708090255285,-1177.623976,0.0004976,23]
[314219952,1708090255295,-1444.0726728,0.00049775,120]
[314219953,1708090255305,-1000.0,0.0004978,23]
[314219954,1708090255314,-1000.0,0.000498,23]
[314219955,1708090255323,-1282.6990402,0.00049805,120]
[314219956,1708090255332,-1000.0,0.0004982,23]
[314219957,1708090255342,-3000.0,0.0004982,48]
[314219958,1708090255351,-250.0,0.00049822,2]
[314219959,1708090255361,-608.41,0.00049824,2]
[314219960,1708090255370,-1000.0,0.0004984,23]
[314219961,1708090255379,-1000.0,0.0004986,23]
[314219962,1708090255392,-3000.0,0.00049863,120]
[314219963,1708090255402,-155.0,0.00049863,60]
[314219964,1708090255411,-2670.37132168,0.00049868,5]
[314219965,1708090255421,-200.0,0.00049877,60]
[314219966,1708090255430,-200.0,0.00049877,59]
[314219967,1708090255439,-200.0,0.00049877,58]
[314219968,1708090255448,-200.0,0.00049877,57]
[314219969,1708090255457,-200.0,0.00049877,56]
[314219970,1708090255466,-1000.0,0.0004988,23]
[314219971,1708090255475,-5000.0,0.00049885,60]
[314219972,1708090255484,-170.4316955,0.000499,26]
[314219973,1708090255494,-138721.0644,0.000499,120]
[314219974,1708090255503,-1000.0,0.000499,23]
[314219975,1708090255512,-1000.0,0.0004992,23]
[314219976,1708090255522,-1000.0,0.0004994,23]
[314219977,1708090255531,-1425.096121,0.0004994,23]
[314219978,1708090255541,-1706.60866,0.0004995,2]
[314219979,1708090255550,-1000.0,0.0004996,23]
[314219980,1708090255560,-1000.0,0.0004996,23]
[314219981,1708090255570,-1000.0,0.0004998,23]
[314219982,1708090255580,-1000.0,0.0004998,23]
[314219983,1708090255589,-200.0,0.0004999,90]
[314219984,1708090255599,-1321.0,0.0004999,2]
[314219985,1708090255608,-731.0,0.0004999,2]
[314219986,1708090255618,-269.16602646,0.00049999,120]
[314219987,1708090255627,-232.55975617,0.00049999,120]
[314219988,1708090255640,-348.37734377,0.00049999,120]
[314219989,1708090255649,-500.0,0.00049999,120]
[314219990,1708090255659,-292.91822846,0.00049999,120]
[314219991,1708090255668,-150.0,0.00049999,9]
[314219992,1708090255678,-150.0,0.00049999,9]
[314219993,1708090255687,-150.0,0.00049999,9]
[314219994,1708090255696,-100000.0,0.0005,40]
[314219995,1708090255706,-400.0,0.0005,2]
[314219996,1708090255715,-500.0,0.0005,2]
[314219997,1708090255725,-500.0,0.0005,2]
[314219998,1708090255735,-500.0,0.0005,2]
[314219999,1708090255745,-500.0,0.0005,2]
[314220000,1708090255754,-500.0,0.0005,2]
[314220001,1708090255764,-500.0,0.0005,2]
[314220002,1708090255773,-500.0,0.0005,2]
[314220003,1708090255783,-500.0,0.0005,2]
[314220004,1708090255793,-500.0,0.0005,2]
[314220005,1708090255803,-500.0,0.0005,2]
[314220006,1708090255812,-500.0,0.0005,2]
[314220007,1708090255822,-500.0,0.0005,2]
[314220008,1708090255831,-500.0,0.0005,2]
[314220009,1708090255840,-308205.91043776,0.0005,31]
[314220010,1708090256032,-455436.35756214,0.0005,31]
[314220011,1708090256042,-2192.89120239,0.0005,14]
[314220012,1708090256052,-5202.79042305,0.0005,30]
[314220013,1708090256061,-4110.28012512,0.0005,30]
[314220014,1708090256070,-148794.94722811,0.0005,60]
[314220015,1708090256080,-307808.92507079,0.0005,2]
[314220016,1708090256089,-3920.96661264,0.0005,2]
[314220017,1708090256099,-452.5655196,0.0005,120]
[314220018,1708090256108,-1624.26592694,0.0005,7]
[314220019,1708090256117,-1114.17855808,0.0005,2]
[314220020,1708090256126,-30571.90505624,0.0005,5]
[314220021,1708090256136,-812.09464035,0.0005,2]
[314220022,1708090256145,-216.84681443,0.0005,2]
[314220023,1708090256155,-6053.74639117,0.0005,14]
[314220024,1708090256164,-200.0,0.0005,2]
[314220025,1708090256173,-560.0,0.0005,4]
[314220026,1708090256182,-19272.60826501,0.0005,2]
[314220027,1708090256190,-1541.61818153,0.0005,30]
[314220028,1708090256199,-9928.37565599,0.0005,30]
[314220029,1708090256209,-135005.24798874,0.0005,120]
[314220030,1708090256221,-178965.58686887,0.0005,120]
[314220031,1708090256230,-5712.92592562,0.0005,7]
[314220032,1708090256239,-472.3739446,0.0005,120]
[314220033,1708090256249,-10210.2966095,0.0005,30]
[314220034,1708090256259,-21720.0,0.0005,120]
[314220035,1708090256269,-18145.0,0.0005,120]
[314220036,1708090256279,-150.0,0.0005,27]
[314220037,1708090256288,-23076.26871698,0.0005,12]
[314220038,1708090256301,-56984.73128302,0.0005,12]
[314220039,1708090256311,-16000.0,0.0005,120]
[314220040,1708090256320,-10000.98766881,0.0005,120]
[314220041,1708090256329,-200.0,0.0005,27]
[314220042,1708090256338,-3000.0,0.0005,81]
[314220043,1708090256348,-1750.078519,0.0005,25]
[314220044,1708090256357,-300.0,0.0005,50]
[314220045,1708090256366,-1900.0,0.0005,78]
[314220046,1708090256375,-200.0,0.0005,81]
[314220047,1708090256384,-7159.0,0.0005,60]
[314220048,1708090256395,-200.0,0.0005,27]
[314220049,1708090256405,-1000.0,0.0005,24]
[314220050,1708090256414,-1000.0,0.0005,24]
[314220051,1708090256423,-3000.0,0.0005001,81]
[314220052,1708090256432,-5483.874982,0.0005002,81]
[314220053,1708090256442,-154.44,0.0005006,2]
[314220054,1708090256451,-2871.0,0.00050078,120]
[314220055,1708090256460,-250.0,0.00050096,2]
[314220056,1708090256468,-6305.24191021,0.00050155,26]
[314220057,1708090256477,-1000.0,0.00050206,120]
[314220058,1708090256486,-489.97894041,0.0005037,2]
[314220059,1708090256496,-1282.6990403,0.00050372,120]
[314220060,1708090256505,-206.0,0.00050385,37]
[314220061,1708090256513,-694.46924762,0.00050399,120]
[314220062,1708090256527,-749.60342518,0.00050399,120]
[314220063,1708090256537,-155.0,0.00050411,60]
[314220064,1708090256548,-150.0,0.00050469,2]
[314220065,1708090256558,-1444.0726728,0.00050479,120]
[314220066,1708090256568,-200.0,0.000505,28]
[314220067,1708090256577,-200.0,0.000505,60]
[314220068,1708090256586,-151.58014321,0.00050502,46]
[314220069,1708090256594,-515.9010231,0.00050506,60]
[314220070,1708090256603,-3701.338207,0.00050684,120]
[314220071,1708090256614,-2000.63948,0.00050684,30]
[314220072,1708090256625,-465.433621,0.00050684,120]
[314220073,1708090256634,-4912.107423,0.00050684,30]
[314220074,1708090256646,-3550.83898,0.00050684,120]
[314220075,1708090256656,-2424.173206,0.00050684,30]
[314220076,1708090256665,-1606.509039,0.00050684,120]
[314220077,1708090256675,-19160.94177367,0.00050684,30]
[314220078,1708090256688,-45482.33648208,0.00050684,30]
[314220079,1708090256701,-3094.95000001,0.00050684,30]
[314220080,1708090256770,-500.0,0.00041095,30]
[314220081,1708090256779,-500.0,0.00041369,30]
[314220082,1708090256789,-9.145,0.00050684,30]
[314220083,1708090256802,-7266.63659224,0.00050684,30]
[314220084,1708090256811,-6947.58198838,0.00050684,120]
[314220085,1708090256855,-254.79129181,0.00041094,4]
[314220086,1708090256865,-500.0,0.00041095,30]
[314220087,1708090256874,-500.0,0.00041643,30]
[314220088,1708090256883,-500.0,0.00041917,30]
[314220089,1708090256896,-2148.70343962,0.00050684,120]
[314220090,1708090256905,-5585.20341,0.00050684,120]
[314220091,1708090256914,-2127.696536,0.00050684,120]
[314220092,1708090256923,-3309.510627,0.00050684,120]
[314220093,1708090256932,-27296.532931,0.00050684,30]
[314220094,1708090256942,-3813.537237,0.00050684,120]
[314220095,1708090256951,-17513.0,0.000508,120]
[314220096,1708090256960,-1444.0726736,0.00050843,120]
[314220097,1708090256971,-152.90020697,0.00050856,48]
[314220098,1708090256980,-5000.0,0.00050885,90]
[314220099,1708090256990,-200.0,0.00050887,65]
[314220100,1708090256999,-200.0,0.00050887,63]
[314220101,1708090257008,-200.0,0.00050887,61]
[314220102,1708090257017,-402.49,0.0005095,30]
[314220103,1708090257026,-3000.0,0.00050958,120]
[314220104,1708090257036,-155.0,0.00050959,60]
[314220105,1708090257045,-156.0,0.00050959,60]
[314220106,1708090257055,-84818.291952,0.00051,41]
[314220107,1708090257067,-266.97678644,0.00051,41]
[314220108,1708090257083,-3077.6682786,0.00051,41]
[314220109,1708090257094,-11837.06298296,0.00051,41]
[314220110,1708090257104,-10596.3646255,0.00051,120]
[314220111,1708090257397,-1117.6353745,0.00051,120]
[314220112,1708090257406,-569.78936969,0.00051,15]
[314220113,1708090257416,-150.0,0.00051,29]
[314220114,1708090257425,-2421.40531233,0.00051,14]
[314220115,1708090257434,-12153.94123315,0.00051,30]
[314220116,1708090257444,-10071.40090804,0.00051,30]
[314220117,1708090257454,-10000.0,0.00051,120]
[314220118,1708090257464,-15000.0,0.00051,120]
[314220119,1708090257473,-200.0,0.00051,29]
[314220120,1708090257483,-300.0,0.00051,51]
[314220121,1708090257495,-413.24,0.00051016,60]
[314220122,1708090257504,-3000.0,0.0005107,54]
[314220123,1708090257513,-378.0,0.00051105,10]
[314220124,1708090257522,-2000.0,0.00051229,60]
[314220125,1708090257533,-151.58014321,0.00051264,49]
[314220126,1708090257542,-8450.0,0.00051392,117]
[314220127,1708090257554,-64235.02199179,0.000514,50]
[314220128,1708090257565,-2000.0,0.00051424,60]
[314220129,1708090257576,-2670.37132168,0.00051447,14]
[314220130,1708090257586,-150.0,0.00051478,2]
[314220131,1708090257595,-3000.0,0.000515,45]
[314220132,1708090257605,-5000.0,0.000515,60]
[314220133,1708090257617,-3000.0,0.000515,45]
[314220134,1708090257626,-5000.0,0.000515,60]
[314220135,1708090257640,-3000.0,0.000515,45]
[314220136,1708090257649,-5000.0,0.000515,60]
[314220137,1708090257659,-1033.7146254,0.000515,120]
[314220138,1708090257670,-200.0,0.000515,29]
[314220139,1708090257679,-17513.0,0.000515,120]
[314220140,1708090257688,-925.334551,0.00051506,120]
[314220141,1708090257766,-500.15987,0.00051506,30]
[314220142,1708090257784,-1228.026855,0.00051506,30]
[314220143,1708090257793,-606.043301,0.00051506,30]
[314220144,1708090257803,-401.627259,0.00051506,120]
[314220145,1708090257813,-18753.502462,0.00051506,30]
[314220146,1708090257822,-2274.071357,0.00051506,120]
[314220147,1708090257832,-827.377656,0.00051506,120]
[314220148,1708090257841,-6824.133232,0.00051506,30]
[314220149,1708090257851,-6305.24191021,0.00051527,28]
[314220150,1708090257861,-169.44737698,0.00051597,2]
[314220151,1708090257870,-58742.24933074,0.000516,120]
[314220152,1708090257879,-151.0,0.00051677,2]
[314220153,1708090257890,-250.49088,0.00051677,2]
[314220154,1708090257900,-500.0,0.0005172,120]
[314220155,1708090257909,-300.0,0.00051795,120]
[314220156,1708090257918,-390.0,0.00051795,120]
[314220157,1708090257928,-507.0,0.00051795,120]
[314220158,1708090257937,-659.0,0.00051795,120]
[314220159,1708090257946,-856.0,0.00051795,120]
[314220160,1708090257955,-1113.0,0.00051795,120]
[314220161,1708090257964,-641.0,0.00051795,120]
[314220162,1708090257973,-1000.0,0.000518,2]
[314220163,1708090257982,-9251.01061649,0.00051848,31]
[314220164,1708090257991,-5000.0,0.00051885,90]
[314220165,1708090258000,-200.0,0.00051887,71]
[314220166,1708090258010,-200.0,0.00051887,69]
[314220167,1708090258018,-200.0,0.00051887,67]
[314220168,1708090258027,-2873.8348908,0.00051902,60]
[314220169,1708090258037,-1512.5116196,0.00051903,60]
[314220170,1708090258046,-150.07174258,0.00051905,60]
[314220171,1708090258055,-2549.18448145,0.00051909,60]
[314220172,1708090258064,-2869.11263421,0.0005191,60]
[314220173,1708090258073,-2710.78172962,0.00051912,60]
[314220174,1708090258082,-2966.0958038,0.00051917,60]
[314220175,1708090258092,-2965.02722545,0.0005192,60]
[314220176,1708090258101,-2965.06767228,0.00051921,60]
[314220177,1708090258110,-2715.8519523,0.00051924,60]
[314220178,1708090258119,-2149.89113575,0.00051924,60]
[314220179,1708090258128,-2851.45237993,0.00051926,60]
[314220180,1708090258139,-2965.46888711,0.00051932,60]
[314220181,1708090258148,-2964.86593041,0.00051932,60]
[314220182,1708090258158,-2856.71577747,0.00051933,60]
[314220183,1708090258167,-2927.60125847,0.00051933,60]
[314220184,1708090258177,-2858.77566541,0.00051935,60]
[314220185,1708090258186,-1509.16512124,0.00051936,60]
[314220186,1708090258195,-2913.57064065,0.00051938,60]
[314220187,1708090258204,-2964.45031186,0.0005194,60]
[314220188,1708090258214,-2885.45025959,0.00051948,60]
[314220189,1708090258223,-2964.73958267,0.00051948,60]
[314220190,1708090258232,-2966.79126881,0.00051949,60]
[314220191,1708090258241,-2745.78641761,0.0005195,60]
[314220192,1708090258251,-2869.59389481,0.00051952,60]
[314220193,1708090258260,-2965.40117635,0.00051954,60]
[314220194,1708090258269,-349.6111592,0.00051955,60]
[314220195,1708090258279,-2965.72060684,0.00051957,60]
[314220196,1708090258288,-2964.82803625,0.00051957,60]
[314220197,1708090258298,-2906.80345,0.00051957,60]
[314220198,1708090258307,-2965.73833337,0.00051958,60]
[314220199,1708090258316,-2964.97369979,0.00051959,60]
[314220200,1708090258326,-2968.6452353,0.0005196,60]
[314220201,1708090258335,-2871.08371564,0.00051961,60]
[314220202,1708090258345,-2870.07267808,0.00051962,60]
[314220203,1708090258354,-2916.34459069,0.00051963,60]
[314220204,1708090258363,-2885.95223996,0.00051963,60]
[314220205,1708090258372,-2967.59514704,0.00051965,60]
[314220206,1708090258381,-2946.73556628,0.00051966,60]
[314220207,1708090258392,-491.68005838,0.00051967,60]
[314220208,1708090258401,-2733.27091177,0.00051967,60]
[314220209,1708090258413,-2881.93229111,0.00051968,60]
[314220210,1708090258422,-2968.43686272,0.00051968,60]
[314220211,1708090258432,-2732.25167108,0.00051969,60]
[314220212,1708090258441,-2874.2011625,0.00051971,60]
[314220213,1708090258450,-2885.62587603,0.00051975,60]
[314220214,1708090258459,-2617.54948159,0.00051976,60]
[314220215,1708090258469,-2967.3433834,0.00051976,60]
[314220216,1708090258478,-2871.20187608,0.00051979,60]
[314220217,1708090258486,-2965.91632058,0.00051981,60]
[314220218,1708090258497,-2882.6199832,0.00051983,60]
[314220219,1708090258506,-2965.14755547,0.00051984,60]
[314220220,1708090258515,-2793.87685263,0.00051985,60]
[314220221,1708090258523,-2966.93225371,0.00051985,60]
[314220222,1708090258532,-2848.68631411,0.0005199,60]
[314220223,1708090258541,-2877.49132227,0.0005199,60]
[314220224,1708090258550,-2930.88585475,0.00051993,60]
[314220225,1708090258560,-2965.61095226,0.00051993,60]
[314220226,1708090258569,-2964.85951904,0.00051996,60]
[314220227,1708090258579,-2965.4286513,0.00051997,60]
[314220228,1708090258588,-2966.18349614,0.00051998,60]
[314220229,1708090258598,-2856.6062787,0.00051998,60]
[314220230,1708090258606,-23509.20033541,0.00052,42]
[314220231,1708090258621,-29151.3656423,0.00052,42]
[314220232,1708090258632,-46452.2862411,0.00052,42]
[314220233,1708090258743,-887.14778119,0.00052,42]
[314220234,1708090258753,-232.27717359,0.00052,30]
[314220235,1708090258762,-150.0,0.00052,30]
[314220236,1708090258771,-986.0035926,0.00052,30]
[314220237,1708090258781,-8284.80937856,0.00052,30]
[314220238,1708090258800,-1996.76931726,0.00052,30]
[314220239,1708090258813,-2594.61708,0.00052,30]
[314220240,1708090258859,-500.0,0.00052,30]
[314220241,1708090258870,-295.25514135,0.00052,30]
[314220242,1708090258882,-2911.91898642,0.00052,30]
[314220243,1708090258895,-5996.11110115,0.00052,30]
[314220244,1708090258904,-4275.32368959,0.00052,30]
[314220245,1708090258916,-2025.12894987,0.00052,30]
[314220246,1708090258928,-301.36826649,0.00052,30]
[314220247,1708090258939,-483.35778768,0.00052,30]
[314220248,1708090258951,-1289.80818689,0.00052,30]
[314220249,1708090454813,500.0,0.00040017,120]
[314220250,1708090456009,257.82967554,0.00040017,120]
[314220251,1708090702275,117182.2933355,0.00040057,33]
[314220252,1708090890599,-250.0,0.00034257,111]
[314220253,1708090890622,-250.0,0.00034257,2]
[314220254,1708090890646,-292.8,0.00034257,2]
[314220255,1708090890668,-6906.22698039,0.00034519,4]
[314220256,1708090890691,-849.232562,0.0003452,2]
[314220257,1708090890719,-1364.826646,0.0003452,2]
[314220258,1708090890742,-1273.848843,0.00034794,2]
[314220259,1708090890765,-2047.23997,0.00034794,2]
[314220260,1708090890791,-1698.465124,0.00034931,2]
[314220261,1708090890815,-2729.653293,0.00034931,2]
[314220262,1708090939961,5587.7656,0.00034694,2]
[314220263,1708090956323,155.0,0.00034694,4]
[314220264,1708090976327,244.176048,0.00034694,4]
[314220282,1708091431967,-155.0,0.00035066,4]
[314220284,1708091431977,-506.68277074,0.00035067,4]
[314220285,1708091432025,-1487.50061937,0.00035067,4]
[314220286,1708091432038,-509.14459552,0.00035067,4]
[314220287,1708091432069,155.0,0.00034694,4]
[314220288,1708091432149,-1138.10058,0.00035067,4]
[314220289,1708091432316,-3264.79841476,0.00035067,4]
[314220290,1708091432326,-2123.081406,0.00035068,2]
[314220291,1708091432338,-3412.066616,0.00035068,2]
[314220292,1708091432348,-2972.313968,0.00035342,2]
[314220293,1708091432357,-4776.893263,0.00035342,2]
[314220294,1708091432366,-3396.930249,0.00036,2]
[314220295,1708091432375,-5459.306587,0.00036,2]
[314220296,1708091432385,-156.79701152,0.00036037,2]
[314220297,1708091432394,-14772.44834632,0.00036127,2]
[314220298,1708091432404,-297.31,0.00036132,5]
[314220299,1708091432416,-155.0,0.00036135,2]
[314220300,1708091432425,-254.79129181,0.00036136,4]
[314220301,1708091432435,-499.99,0.00036136,2]
[314220302,1708091432445,-34059.83117233,0.00036137,12]
[314220303,1708091432455,-4903.06560948,0.00036146,12]
[314220304,1708091432466,-587.86153687,0.00036155,12]
[314220305,1708091432476,-490.4,0.0003633,2]
[314220306,1708091432486,-1442.27777849,0.000364,2]
[314220307,1708091432495,-8712.0,0.000365,3]
[314220308,1708091432506,-2264.0,0.000365,3]
[314220309,1708091432515,-1246.22,0.0003711,2]
[314220310,1708091432525,-169.83,0.0003722,2]
[314220311,1708091432534,-3693.67979958,0.00037488,2]
[314220313,1708091432543,-165.0,0.000375,2]
[314220314,1708091432553,-2487.53,0.00037563,2]
[314220315,1708091432562,-292.8,0.00037588,2]
[314220316,1708091432572,-250.0,0.00037919,2]
[314220317,1708091432582,-250.0,0.00037944,111]
[314220318,1708091432591,-150.0,0.00038038,2]
[314220319,1708091432601,-32125.66406087,0.00038145,2]
[314220320,1708091432613,-169.84,0.00038148,2]
[314220321,1708091432623,-23900.0,0.00038237,2]
[314220322,1708091432633,-250.0,0.00038245,2]
[314220323,1708091432643,-2000.0,0.00038265,2]
[314220324,1708091432653,-200.0,0.00038302,2]
[314220325,1708091432666,-150.0,0.00038356,2]
[314220326,1708091432676,-869.23,0.00038433,15]
[314220327,1708091432686,-189.37,0.0003848,2]
[314220328,1708091432695,-490.4,0.00038594,2]
[314220329,1708091432705,-174.65,0.00038685,2]
[314220330,1708091432715,-156.79701149,0.00038962,2]
[314220331,1708091432724,-150.0,0.00039366,2]
[314220332,1708091432734,-166.37,0.00039445,2]
[314220333,1708091432743,-3688.78,0.00039526,5]
[314220334,1708091432753,-3566.08,0.00039754,5]
[314220335,1708091432762,-555.04275992,0.00039879,31]
[314220336,1708091432773,-348.37734376,0.00039879,31]
[314220337,1708091432782,-232.55975618,0.00039879,31]
[314220338,1708091432791,-269.16602646,0.00039879,31]
[314220339,1708091432800,-3693.67979953,0.00039978,2]
[314220340,1708091432809,-230.0,0.0004,30]
[314220341,1708091432818,-447.41497558,0.0004,4]
[314220342,1708091432827,-150.0,0.0004,2]
[314220343,1708091432837,-800.24575574,0.0004,4]
[314220344,1708091432846,-2100.66159971,0.00040056,33]
[314220345,1708091432855,-189.37,0.00040123,2]
[314220346,1708091432864,-1585.71883741,0.0004022,7]
[314220347,1708091432874,-2881.55593932,0.0004022,8]
[314220348,1708091432883,-1639.16797842,0.0004022,7]
[314220349,1708091432895,-247.63615507,0.0004022,4]
[314220350,1708091432904,-1259.81649732,0.0004022,8]
[314220351,1708091432916,-3640.81,0.0004031,5]
[314220352,1708091432925,-2500.0,0.00040329,2]
[314220353,1708091432934,-150.0,0.00040375,2]
[314220354,1708091432943,-2877.0,0.0004039,2]
[314220355,1708091432955,-512.69204958,0.0004039,2]
[314220356,1708091432964,-1756.6541616,0.0004039,5]
[314220357,1708091432975,-204.94933082,0.0004039,16]
[314220358,1708091432984,-824.0,0.0004039,2]
[314220359,1708091432993,-15449.3130256,0.00040419,10]
[314220360,1708091433003,-2574.88550426,0.0004042,10]
[314220361,1708091433012,-82396.3361363,0.00040429,10]
[314220362,1708091433022,-144769.052821,0.00040429,6]
[314220363,1708091433032,-2229.79,0.0004043,2]
[314220364,1708091433042,-107682.78657586,0.00040439,2]
[314220370,1708091440556,-1224.96970469,0.00038137,7]
[314220371,1708091440615,-1246.12547997,0.00038137,7]
[314220372,1708091441006,-919.66055556,0.00038137,7]
[314220373,1708091441066,-6597.17825978,0.00038137,7]
[314220374,1708091441075,-393665.82632414,0.00040439,2]
[314220375,1708091441085,-719.0,0.0004049,3]
[314220376,1708091441094,-3589.13,0.00040539,5]
[314220377,1708091441103,-300.0,0.00040547,2]
[314220378,1708091441112,-32125.66406082,0.00040562,3]
[314220379,1708091441121,-1000.0,0.00040656,2]
[314220380,1708091441131,-490.4,0.00040858,2]
[314220381,1708091441141,-3593.76,0.00040972,5]
[314220382,1708091441150,-276.89,0.00041,2]
[314220383,1708091441161,-72384.5264107,0.00041024,6]
[314220384,1708091441170,-1756.65416154,0.00041033,5]
[314220385,1708091441179,-3648.17,0.00041034,5]
[314220386,1708091441189,-450.0,0.00041095,7]
[314220387,1708091441197,-154.44,0.00041244,2]
[314220388,1708091441206,-150.0,0.00041384,2]
[314220389,1708091441215,-600.0,0.00041643,7]
[314220390,1708091441225,-1756.65416154,0.00041675,5]
[314220391,1708091441234,-2866.0,0.000417,87]
[314220392,1708091441244,-180.0,0.00041738,2]
[314220393,1708091441253,-189.37,0.00041767,2]
[314220394,1708091441262,-156.79701149,0.00041887,2]
[314220395,1708091441271,-3150.7881,0.00041992,2]
[314220396,1708091441279,-965.23195016,0.00042,7]
[314220397,1708091441288,-4000.0,0.00042,2]
[314220398,1708091441297,-869.23,0.00042169,15]
[314220399,1708091441306,-750.0,0.00042191,7]
[314220400,1708091441315,-1756.65416154,0.00042318,5]
[314220401,1708091441325,-150.0,0.00042394,2]
[314220402,1708091441334,-500.0,0.00042465,31]
[314220403,1708091441343,-500.0,0.00042465,31]
[314220404,1708091441352,-500.0,0.00042465,31]
[314220405,1708091441361,-500.0,0.00042465,31]
[314220406,1708091441370,-500.0,0.00042465,31]
[314220407,1708091441379,-500.0,0.00042465,31]
[314220408,1708091441388,-500.0,0.00042465,31]
[314220409,1708091441397,-500.0,0.00042465,31]
[314220410,1708091441407,-500.0,0.00042465,31]
[314220412,1708091441417,-500.0,0.00042465,31]
[314220414,1708091441425,-500.0,0.00042465,31]
[314220416,1708091441434,-500.0,0.00042465,31]
[314220418,1708091441443,-500.0,0.00042465,31]